bitfinex/quotes_SOLUSD_20260224
["timestamp","ask_amount","ask_price","bid_price","bid_amount"]
[1771923894210,0.67979671,77.047,77.02,5.84412114]
[1771923894610,12.97838835,77.052,77.031,0.66708449]
[1771923896538,0.69001755,77.052,77.031,0.66708449]
[1771923897733,12.97706951,77.059,77.033,0.70637663]
[1771923898027,12.97706951,77.059,77.04,5.88341328]
[1771923898617,12.97706951,77.059,77.04,0.70637663]
[1771923899839,12.97649573,77.063,77.042,0.70637663]
[1771923900040,12.97649573,77.063,77.05,5.88341328]
[1771923900239,12.97649573,77.063,77.05,0.70637663]
[1771923900914,33.12815934,77.07,77.05,0.70637663]
[1771923901142,0.69001755,77.091,77.061,0.70637663]
[1771923901434,0.69001755,77.089,77.055,0.70637663]
[1771923901740,0.69001755,77.089,77.061,0.70637663]
[1771923903015,12.97159026,77.092,77.071,0.70637663]
[1771923903515,12.96994579,77.102,77.081,0.70637663]
[1771923904916,3.69383402,77.136,77.048,3.69383402]
[1771923904917,0.69001755,77.116,77.092,0.70637663]
[1771923906635,0.69001755,77.109,77.078,0.70637663]
[1771923907038,0.69001755,77.099,77.078,0.70637663]
[1771923908438,12.96882294,77.108,77.08,5.17703665]
[1771923908617,12.96882294,77.108,77.081,0.70637663]
[1771923908814,0.69001755,77.122,77.091,0.70637663]
[1771923909137,0.69001755,77.119,77.093,0.70637663]
[1771923910129,0.69001755,77.124,77.1,5.17703665]
[1771923910334,0.69001755,77.124,77.101,0.70637663]
[1771923911439,12.96630058,77.123,77.111,1.55322521]
[1771923911952,13.16512753,77.13,77.112,0.70637663]
[1771923912236,0.2,77.13,77.121,0.70637663]
[1771923912444,0.89001755,77.13,77.111,1.55322521]
[1771923912624,0.69001755,77.128,77.093,0.70637663]
[1771923913541,0.69001755,77.126,77.094,13.67755467]
[1771923913844,0.69001755,77.126,77.1,5.17703665]
[1771923915351,0.69001755,77.124,77.094,0.70637663]
[1771923915648,0.69001755,77.119,77.087,0.70637663]
[1771923915850,0.69001755,77.109,77.08,5.88341328]
[1771923916246,0.69001755,77.109,77.082,0.70637663]
[1771923917271,0.69001755,77.107,77.082,0.70637663]
[1771923917642,11.55671255,77.1,77.075,0.70637663]
[1771923917837,0.69001755,77.099,77.071,13.68142561]
[1771923918038,0.69001755,77.099,77.072,0.70637663]
[1771923919451,0.69001755,77.097,77.072,0.70637663]
[1771923919647,0.69001755,77.111,77.081,0.70637663]
[1771923919830,0.69001755,77.12,77.091,0.70637663]
[1771923920033,0.69001755,77.127,77.101,0.70637663]
[1771923920361,0.69001755,77.127,77.091,0.70637663]
[1771923921638,0.69001755,77.125,77.1,11.55671255]
[1771923922144,0.69001755,77.125,77.098,0.70637663]
[1771923922654,0.69001755,77.125,77.1,11.55671255]
[1771923922966,13.16528793,77.13,77.101,0.70637663]
[1771923923259,13.16528793,77.13,77.11,11.55671255]
[1771923923753,13.16528793,77.13,77.111,0.72453353]
[1771923925259,0.67903513,77.129,77.104,0.70194211]
[1771923925837,0.67903513,77.127,77.104,0.70194211]
[1771923926653,0.67903513,77.127,77.11,11.55671255]
[1771923926858,0.67903513,77.127,77.106,0.70194211]
[1771923927437,0.67903513,77.127,77.091,0.70194211]
[1771923928055,0.67903513,77.125,77.092,12.97151455]
[1771923928241,0.67903513,77.125,77.092,13.67345666]
[1771923928440,0.67903513,77.125,77.093,0.70194211]
[1771923929765,0.67903513,77.125,77.101,0.70194211]
[1771923930343,0.67903513,77.123,77.101,0.70194211]
[1771923930949,0.67903513,77.123,77.1,11.54852235]
[1771923931860,0.67903513,77.123,77.102,0.70194211]
[1771923932766,0.67903513,77.123,77.103,13.67160606]
[1771923933064,0.67903513,77.123,77.103,0.70194211]
[1771923933760,0.67903513,77.119,77.091,0.70194211]
[1771923934562,0.67903513,77.119,77.086,13.67442334]
[1771923934862,0.67903513,77.108,77.086,13.67442334]
[1771923937075,12.96697311,77.119,77.091,0.70194211]
[1771923937445,0.67903513,77.119,77.091,0.70194211]
[1771923937761,13.64600824,77.119,77.091,0.70194211]
[1771923938967,13.64600824,77.119,77.093,0.70194211]
[1771923939562,0.2,77.108,77.093,0.70194211]
[1771923939943,0.67903513,77.107,77.082,12.97307992]
[1771923940557,0.2,77.098,77.082,12.97307992]
[1771923941978,0.2,77.098,77.083,0.70194211]
[1771923942657,0.2,77.098,77.084,13.67480288]
[1771923943270,0.2,77.098,77.084,0.70194211]
[1771923944060,0.67903513,77.126,77.091,0.62471927]
[1771923944264,0.67903513,77.126,77.101,0.62471927]
[1771923944750,0.2,77.13,77.11,5.17498434]
[1771923944950,0.2,77.13,77.111,0.62533674]
[1771923945163,13.1652561,77.13,77.111,0.62533674]
[1771923945751,13.84429123,77.13,77.11,5.17498434]
[1771923946854,13.84429123,77.13,77.11,4.97498434]
[1771923947870,13.84429123,77.13,77.11,4.77498434]
[1771923948357,0.67903513,77.129,77.11,4.77498434]
[1771923948674,0.67903513,77.129,77.11,4.57498434]
[1771923949853,0.67903513,77.129,77.11,17.54339677]
[1771923950860,0.67903513,77.129,77.11,4.57498434]
[1771923951369,0.67903513,77.129,77.08,5.17498434]
[1771923951370,0.67903513,77.127,77.091,0.64787031]
[1771923951766,0.67903513,77.127,77.1,5.17498434]
[1771923952570,0.67903513,77.127,77.096,0.65147798]
[1771923952571,0.67903513,77.119,77.084,0.65504446]
[1771923952770,0.67903513,77.119,77.09,5.17498434]
[1771923952978,0.67903513,77.117,77.09,12.9717865]
[1771923953872,0.67903513,77.117,77.09,18.14677084]
[1771923954379,0.67903513,77.117,77.091,0.65856805]
[1771923956164,5.17498434,77.12,77.091,0.65856805]
[1771923956165,0.71455784,77.115,77.091,0.65856805]
[1771923956563,0.71455784,77.115,77.091,13.63021845]
[1771923956881,0.71455784,77.115,77.092,0.6659813]
[1771923958071,0.71455784,77.115,77.091,12.9716504]
[1771923958072,0.71455784,77.115,77.087,12.9722039]
[1771923958276,0.71455784,77.115,77.068,3.69383402]
[1771923958277,0.71455784,77.109,77.075,0.66726828]
[1771923958569,0.71455784,77.099,77.071,12.97504898]
[1771923959379,0.71455784,77.099,77.071,13.64359186]
[1771923960383,12.96999677,77.102,77.072,0.66980519]
[1771923960692,12.96849584,77.11,77.09,5.17498434]
[1771923961491,12.96849584,77.11,77.09,5.84604564]
[1771923962565,32.41556659,77.124,77.092,0.67348666]
[1771923962566,0.71455784,77.117,77.092,0.67348666]
[1771923962772,13.68191542,77.117,77.092,0.67348666]
[1771923964812,0.71455784,77.117,77.093,12.97134629]
[1771923965085,0.71455784,77.117,77.1,5.17498434]
[1771923965270,0.71455784,77.117,77.094,0.67587906]
[1771923966072,0.71455784,77.117,77.1,5.17498434]
[1771923969482,0.71455784,77.117,77.099,0.677045]
[1771923969682,12.96747756,77.116,77.099,0.677045]
[1771923970296,0.71455784,77.115,77.094,0.6816033]
[1771923971702,0.71455784,77.115,77.091,0.68378516]
[1771923972402,0.71455784,77.115,77.093,0.68378516]
[1771923972903,0.71455784,77.114,77.093,0.68378516]
[1771923974303,0.71455784,77.114,77.094,13.65710384]
[1771923974498,0.71455784,77.114,77.095,0.6859258]
[1771923975002,0.71455784,77.114,77.1,5.17498434]
[1771923975309,0.71455784,77.121,77.101,0.68698316]
[1771923976386,0.71455784,77.121,77.102,13.65786051]
[1771923977400,0.71455784,77.121,77.102,12.96983217]
[1771923977601,0.71455784,77.121,77.104,12.96949574]
[1771923977906,0.71455784,77.121,77.104,13.65957938]
[1771923979876,0.71455784,77.121,77.105,0.69209119]
[1771923980083,0.71455784,77.126,77.11,5.17498434]
[1771923980896,0.2,77.13,77.111,0.69309102]
[1771923981198,12.96364471,77.139,77.121,0.69309102]
[1771923981709,0.71455784,77.141,77.121,0.69309102]
[1771923981888,0.71455784,77.14,77.114,0.69406238]
[1771923983486,12.96361114,77.139,77.114,0.69406238]
[1771923983690,0.71625351,77.138,77.114,0.69406238]
[1771923984305,0.71625351,77.138,77.12,5.17498434]
[1771923989287,0.71625351,77.138,77.12,5.17186072]
[1771923989495,13.72906096,77.137,77.12,5.17186072]
[1771923991008,0.7651137,77.136,77.12,5.17186072]
[1771923992329,0.7651137,77.134,77.118,0.70229017]
[1771923993699,0.7651137,77.132,77.105,0.70654192]
[1771923993899,0.7651137,77.132,77.11,5.17186072]
[1771923994306,0.7651137,77.132,77.103,0.70654192]
[1771923994820,0.7651137,77.129,77.103,0.70654192]
[1771923995918,0.7651137,77.127,77.1,5.17186072]
[1771923996125,0.7651137,77.127,77.101,12.97000038]
[1771923997022,0.7651137,77.127,77.101,13.67897886]
[1771923997419,0.7651137,77.125,77.101,13.67897886]
[1771924000218,0.7651137,77.123,77.101,0.70897848]
[1771924000422,0.7651137,77.123,77.097,12.9705426]
[1771924001629,0.7651137,77.123,77.094,12.97117804]
[1771924001919,0.7651137,77.121,77.082,12.97304357]
[1771924002128,0.7651137,77.121,77.073,0.71284357]
[1771924003021,45.38381741,77.12,77.074,12.97454394]
[1771924003220,0.7651137,77.119,77.074,12.97454394]
[1771924003930,0.28432314,77.116,77.073,0.71284357]
[1771924004111,0.7651137,77.113,77.06,0.71433659]
[1771924004514,0.7651137,77.103,77.059,12.97706951]
[1771924005023,0.7651137,77.101,77.059,13.69214162]
[1771924005228,0.7651137,77.101,77.06,0.71507211]
[1771924007524,0.7651137,77.093,77.04,0.71539303]
[1771924008926,0.7651137,77.091,77.042,0.71539303]
[1771924010840,0.7651137,77.089,77.042,0.71539303]
[1771924011035,0.7651137,77.083,77.037,0.71539303]
[1771924012451,0.28432314,77.074,77.031,12.98178655]
[1771924012742,0.7651137,77.073,77.032,0.71539303]
[1771924013444,110.26073419,77.09,77.029,12.98200966]
[1771924013445,0.7651137,77.071,77.029,12.98200966]
[1771924013740,0.7651137,77.071,77.03,0.71539303]
[1771924016344,0.72953698,77.069,77.024,0.72298472]
[1771924017632,0.72953698,77.063,77.02,0.82397674]
[1771924018842,0.72953698,77.061,77.02,0.1]
[1771924019146,0.72953698,77.053,77.02,0.1]
[1771924019547,0.792884,77.043,76.991,12.98853112]
[1771924019924,0.792884,77.033,76.99,1e-08]
[1771924021128,0.792884,77.031,76.99,1e-08]
[1771924023242,0.792884,77.013,76.99,1e-08]
[1771924023840,0.792884,77.019,76.99,1e-08]
[1771924024845,3.69383402,77.067,76.99,1e-08]
[1771924025043,0.28432314,77.057,76.99,1e-08]
[1771924026341,0.28432314,77.052,76.99,1e-08]
[1771924026862,0.72953698,77.043,76.99,1e-08]
[1771924027159,0.72953698,77.033,76.99,1e-08]
[1771924027656,0.72953698,77.033,76.99,0.73085579]
[1771924030260,0.12383399,77.005,76.992,0.73085578]
[1771924030461,0.72953698,77.027,76.993,0.73085578]
[1771924031049,0.72953698,77.027,76.991,45.45985893]
[1771924031050,0.72953698,77.027,76.991,0.73085578]
[1771924032655,0.72953698,77.025,76.993,0.73085578]
[1771924034853,0.72953698,77.023,76.99,1e-08]
[1771924035436,0.72953698,77.021,76.99,1e-08]
[1771924035640,0.72953698,77.019,76.99,1e-08]
[1771924036250,0.72953698,77.015,76.99,1e-08]
[1771924036461,0.72953698,77.013,76.99,1e-08]
[1771924036838,12.98498935,77.012,76.99,1e-08]
[1771924037043,0.72953698,77.011,76.99,1e-08]
[1771924038850,0.72953698,77.003,76.98,0.2]
[1771924039152,0.72953698,77.001,76.98,0.2]
[1771924041652,0.72953698,77.01,76.981,0.73085578]
[1771924042248,51.92369409,77.037,76.98,13.19037109]
[1771924042249,12.98369203,77.02,76.982,0.73085578]
[1771924042652,0.72953698,77.019,76.982,0.73085578]
[1771924043263,0.72953698,77.032,76.984,0.73085578]
[1771924043566,0.72953698,77.032,76.983,110.69831063]
[1771924043567,0.72953698,77.032,76.986,0.73085578]
[1771924044571,0.94407636,77.054,76.997,0.75273971]
[1771924044748,0.80191479,77.054,76.997,0.75273971]
[1771924044953,0.14216157,77.053,76.997,0.75273971]
[1771924045149,0.78577898,77.052,76.997,0.75273971]
[1771924045750,0.78577898,77.05,76.999,0.78722691]
[1771924045950,0.78577898,77.05,77.0,0.28432314]
[1771924046154,0.78577898,77.05,77.007,0.78722691]
[1771924046873,0.78577898,77.056,77.011,0.78722691]
[1771924047167,51.86783326,77.12,77.001,3.69383402]
[1771924047168,0.78577898,77.062,77.017,0.78722691]
[1771924047755,0.78577898,77.06,77.019,0.78722691]
[1771924048970,0.78577898,77.06,77.018,13.77120468]
[1771924049168,45.4185645,77.061,76.965,51.97149225]
[1771924049169,0.14216157,77.053,76.999,0.78722691]
[1771924049365,0.78577898,77.052,77.0,0.78722691]
[1771924050170,0.78577898,77.05,77.002,0.78722691]
[1771924053085,0.78577898,77.048,77.004,0.78722691]
[1771924055381,0.78577898,77.048,76.988,3.69383402]
[1771924055382,0.78577898,77.046,77.006,0.78722691]
[1771924058885,0.78577898,77.044,77.008,0.78722691]
[1771924060475,0.78577898,77.042,77.01,0.78722691]
[1771924062284,0.78577898,77.038,77.007,0.78722691]
[1771924062474,12.98178655,77.031,77.001,0.78722691]
[1771924062675,0.78577898,77.03,77.001,0.78722691]
[1771924064087,0.78577898,77.03,76.995,0.78722691]
[1771924064888,0.78577898,77.028,76.997,0.78722691]
[1771924066075,0.78577898,77.028,76.993,13.77539484]
[1771924066280,0.78577898,77.028,76.994,0.78722691]
[1771924066967,0.78577898,77.026,76.995,12.98785635]
[1771924067886,0.78577898,77.026,76.996,0.78722691]
[1771924069186,32.45530903,77.029,76.998,0.78722691]
[1771924069187,12.98217991,77.029,76.998,0.78722691]
[1771924069875,13.76740859,77.032,76.998,0.78722691]
[1771924070996,0.78577898,77.039,76.998,0.78722691]
[1771924071170,0.78577898,77.077,77.006,0.78722691]
[1771924071484,0.14216157,77.066,77.006,0.78722691]
[1771924071674,0.78577898,77.063,77.006,0.78722691]
[1771924073389,0.78577898,77.061,77.008,0.78722691]
[1771924075893,0.7787828,77.059,77.01,0.78779734]
[1771924078990,0.7787828,77.059,77.016,0.78779734]
[1771924079397,13.75519539,77.063,77.016,0.78779734]
[1771924080084,0.7787828,77.062,77.016,0.78779734]
[1771924080702,0.7787828,77.067,77.018,0.78779734]
[1771924080875,0.7787828,77.072,77.026,0.78779734]
[1771924081070,0.7787828,77.07,77.027,45.43861242]
[1771924081295,0.7787828,77.07,77.028,0.78779734]
[1771924083497,0.7787828,77.068,77.03,0.78779734]
[1771924086295,51.883973,77.096,77.032,0.78779734]
[1771924086296,0.7787828,77.066,77.032,0.78779734]
[1771924086483,0.7787828,77.066,77.031,12.98178655]
[1771924087190,0.7787828,77.062,77.014,0.78779734]
[1771924088695,0.7787828,77.06,77.016,0.78779734]
[1771924091197,45.4185645,77.061,77.015,45.44569239]
[1771924091198,0.7787828,77.058,77.018,0.78779734]
[1771924093295,0.7787828,77.056,77.02,0.78779734]
[1771924095717,0.7787828,77.052,76.989,0.78779734]
[1771924095997,0.7787828,77.042,76.989,0.78779734]
[1771924097807,0.7787828,77.04,76.991,0.78779734]
[1771924100789,0.7787828,77.038,76.993,0.78779734]
[1771924103788,0.7787828,77.038,76.996,0.76089742]
[1771924103789,0.75859186,77.036,76.996,0.76089742]
[1771924104610,12.98069269,77.038,76.996,0.76089742]
[1771924104786,12.98026998,77.04,76.996,0.76089742]
[1771924105193,0.77230314,77.039,76.996,0.76089742]
[1771924105902,0.77230314,77.037,76.998,0.80612533]
[1771924108798,0.77230314,77.037,77.0,0.80612533]
[1771924110594,0.77230314,77.035,77.0,0.80612533]
[1771924111813,0.77230314,77.035,77.002,0.80612533]
[1771924113018,0.77230314,77.034,77.002,0.80612533]
[1771924114512,0.77230314,77.032,77.004,0.80612533]
[1771924115903,0.77230314,77.032,77.006,0.80612533]
[1771924118516,0.77230314,77.032,77.008,0.80612533]
[1771924120321,0.77230314,77.031,77.008,0.80612533]
[1771924120701,0.77230314,77.031,77.009,12.9854952]
[1771924121627,0.77230314,77.031,77.009,13.79162053]
[1771924121923,0.77230314,77.031,76.999,32.46788883]
[1771924121924,0.77230314,77.031,77.01,0.80612533]
[1771924125730,0.77230314,77.031,76.989,3.69383402]
[1771924125905,0.77230314,77.029,76.997,0.80612533]
[1771924129334,0.77230314,77.027,76.998,12.98735032]
[1771924129835,0.77230314,77.027,76.959,32.48443635]
[1771924130004,0.77230314,77.027,76.92,0.1]
[1771924130005,0.77230314,77.021,76.974,0.80612533]
[1771924131130,0.77230314,77.021,76.976,0.80612533]
[1771924131630,0.77230314,77.019,76.978,0.80612533]
[1771924134911,0.8306779,77.024,76.986,0.79368618]
[1771924135512,0.8306779,77.024,76.979,45.46694552]
[1771924135513,0.8306779,77.024,76.98,0.79368618]
[1771924135935,0.8306779,77.024,76.986,0.79368618]
[1771924136937,0.8306779,77.022,76.988,0.79368618]
[1771924138434,0.8306779,77.022,76.97,0.89368618]
[1771924138623,0.8306779,77.022,76.972,0.79368618]
[1771924139115,0.8306779,77.02,76.974,0.79368618]
[1771924141012,0.8306779,77.018,76.976,0.79368618]
[1771924143015,0.8306779,77.016,76.978,0.79368618]
[1771924145229,0.8306779,77.012,76.971,0.79368618]
[1771924146233,0.28432314,77.005,76.97,0.1]
[1771924146437,0.8306779,77.002,76.97,0.1]
[1771924147038,13.81744426,77.002,76.973,0.79368618]
[1771924147347,0.8306779,77.002,76.973,0.79368618]
[1771924147730,0.8306779,77.009,76.973,0.79368618]
[1771924147951,13.81622971,77.009,76.973,0.79368618]
[1771924148247,0.8306779,77.009,76.973,0.79368618]
[1771924148752,13.81623174,77.009,76.973,0.79368618]
[1771924149048,0.8306779,77.021,76.977,0.79368618]
[1771924149252,32.45487288,77.031,76.979,0.79368618]
[1771924149253,0.8306779,77.019,76.979,0.79368618]
[1771924151457,0.8306779,77.017,76.981,0.79368618]
[1771924154147,0.8306779,77.015,76.975,0.79368618]
[1771924154345,0.8306779,77.015,76.977,0.79368618]
[1771924154540,0.8306779,77.013,76.972,12.99161758]
[1771924155143,0.8306779,77.011,76.97,0.1]
[1771924155449,0.8306779,77.003,76.97,0.1]
[1771924156737,0.8306779,77.001,76.97,0.1]
[1771924157747,0.8306779,77.001,76.963,12.99325649]
[1771924157948,0.8306779,77.001,76.964,0.79368618]
[1771924161459,0.8306779,76.999,76.964,0.79368618]
[1771924162459,0.8306779,76.999,76.965,12.99291885]
[1771924162763,0.8306779,76.999,76.966,0.79368618]
[1771924164667,0.82310318,76.997,76.966,0.79368618]
[1771924167274,0.84893334,76.995,76.966,0.79368618]
[1771924168775,0.84893334,76.995,76.967,0.78917758]
[1771924171376,0.84893334,76.993,76.967,0.78917758]
[1771924172572,0.84893334,76.991,76.967,0.78917758]
[1771924172952,0.84893334,76.991,76.963,0.78917758]
[1771924176368,0.84893334,76.989,76.96,0.2]
[1771924177474,0.84893334,76.987,76.961,0.78917758]
[1771924178471,0.84893334,76.987,76.962,0.78917758]
[1771924179475,0.84893334,76.987,76.963,12.99325649]
[1771924179661,0.84893334,76.987,76.964,0.78917758]
[1771924181776,0.84893334,76.986,76.964,0.78917758]
[1771924182157,0.84893334,76.986,76.96,0.2]
[1771924182578,0.84893334,76.986,76.96,0.98917758]
[1771924182780,0.84893334,76.986,76.961,0.78917758]
[1771924183374,13.83758187,76.991,76.961,0.78917758]
[1771924184358,0.84893334,76.99,76.963,0.78917758]
[1771924187983,12.98886853,76.989,76.965,0.78917758]
[1771924188182,0.84893334,76.988,76.965,0.78917758]
[1771924189991,0.84893334,77.047,76.971,0.28432314]
[1771924190179,0.84893334,77.076,76.981,0.14216157]
[1771924190381,0.28432314,77.073,76.996,0.78917758]
[1771924190573,0.84893334,77.062,76.996,0.78917758]
[1771924191075,0.28432314,77.051,76.996,0.78917758]
[1771924191260,0.84893334,77.032,76.996,0.78917758]
[1771924192063,0.84893334,77.03,76.998,0.78917758]
[1771924194094,0.84893334,77.03,77.0,0.78917758]
[1771924194582,0.84893334,77.032,77.0,0.78917758]
[1771924194975,0.84893334,77.032,76.993,0.84228213]
[1771924196677,0.78739677,77.03,76.994,12.98802504]
[1771924196875,0.78739677,77.03,76.994,13.83030717]
[1771924199495,0.78739677,77.028,76.995,0.84228213]
[1771924202174,0.28432314,77.033,76.997,0.84228213]
[1771924202175,12.98153303,77.033,76.997,0.84228213]
[1771924202384,0.78739677,77.038,76.997,0.84228213]
[1771924202586,0.78739677,77.049,77.003,0.84228213]
[1771924202794,0.78739677,77.049,77.007,0.84228213]
[1771924205178,0.78739677,77.047,77.009,0.84228213]
[1771924205895,0.78739677,77.043,77.003,0.84228213]
[1771924207509,0.78739677,77.041,77.004,0.84228213]
[1771924209398,0.78739677,77.041,77.005,0.84228213]
[1771924210112,0.78739677,77.039,77.005,0.84228213]
[1771924210494,0.78739677,77.039,77.006,0.84228213]
[1771924213910,0.78739677,77.037,77.008,0.84228213]
[1771924216299,0.78739677,77.035,77.008,0.84228213]
[1771924218598,0.78739677,77.033,77.003,0.84228213]
[1771924220724,0.78739677,77.031,77.005,0.84228213]
[1771924222522,0.78739677,77.037,77.005,0.84228213]
[1771924222823,0.78739677,77.037,77.007,0.84228213]
[1771924226017,0.83888069,77.035,77.007,0.84228213]
[1771924228023,0.83888069,77.033,77.007,0.84228213]
[1771924231525,0.83888069,77.033,77.005,12.98600311]
[1771924231830,0.83888069,77.031,77.002,0.86308283]
[1771924233332,0.83888069,77.029,76.98,0.86308283]
[1771924236019,0.83888069,77.027,76.982,0.86308283]
[1771924238339,0.83888069,77.027,76.986,0.86308283]
[1771924239533,0.83888069,77.025,76.986,0.86308283]
[1771924240536,0.83888069,77.023,76.988,0.86308283]
[1771924243418,0.83888069,77.021,76.99,0.86308283]
[1771924245941,13.8225213,77.02,76.992,0.86308283]
[1771924246119,12.98364061,77.02,76.992,0.86308283]
[1771924246519,13.8225213,77.02,76.992,0.86308283]
[1771924246725,0.83888069,77.019,76.992,0.86308283]
[1771924248935,0.83888069,77.019,76.994,0.86308283]
[1771924250722,0.83888069,77.017,76.994,0.86308283]
[1771924252428,0.83888069,77.017,76.996,0.86308283]
[1771924256024,0.83888069,77.017,76.997,12.98751899]
[1771924256224,0.83888069,77.017,76.998,0.80531668]
[1771924256633,0.85729404,77.021,76.998,0.80531668]
[1771924258129,0.85729404,77.019,76.998,0.80531668]
[1771924258830,0.85729404,77.019,77.0,0.80531668]
[1771924262648,0.85729404,77.03,77.002,0.80531668]
[1771924264255,0.85729404,77.028,77.004,0.80531668]
[1771924264463,0.85729404,77.028,76.991,0.80531668]
[1771924266356,0.85729404,77.026,76.993,0.80531668]
[1771924269751,0.85729404,77.026,76.992,12.98836242]
[1771924269752,0.85729404,77.024,76.995,0.80531668]
[1771924273748,3.69383402,77.056,76.97,12.99207483]
[1771924273749,0.85729404,77.022,76.97,12.99207483]
[1771924273950,0.85729404,77.008,76.971,0.80531668]
[1771924274135,0.85729404,77.002,76.971,0.80531668]
[1771924274654,0.85729404,77.002,76.962,0.80531668]
[1771924275657,0.85729404,77.0,76.964,0.80531668]
[1771924276038,0.85729404,76.992,76.96,1.00531668]
[1771924276759,0.85729404,76.992,76.96,0.2]
[1771924277151,0.85729404,76.992,76.96,1.00531668]
[1771924277549,0.85729404,76.99,76.96,1.00531668]
[1771924277755,0.85729404,76.99,76.96,0.2]
[1771924278056,0.28432314,76.989,76.96,0.2]
[1771924278354,0.85729404,76.982,76.96,0.2]
[1771924278839,0.85729404,76.972,76.943,0.80531668]
[1771924279344,0.85729404,76.972,76.948,0.80531668]
[1771924280140,0.85729404,76.97,76.948,0.80531668]
[1771924280342,0.85729404,76.97,76.95,1.00531668]
[1771924281056,0.85729404,76.97,76.94,0.2]
[1771924281057,0.85729404,76.97,76.94,1.00531668]
[1771924281559,0.85729404,76.97,76.94,0.2]
[1771924282858,45.4728527,76.969,76.94,0.2]
[1771924283054,0.85729404,76.968,76.94,0.2]
[1771924285167,0.82084168,76.966,76.94,0.2]
[1771924285656,45.47403432,76.967,76.94,0.2]
[1771924285657,0.82084168,76.962,76.94,0.2]
[1771924286048,0.82084168,76.962,76.93,0.1]
[1771924286562,0.82084168,76.952,76.923,0.77611274]
[1771924286863,0.82084168,76.962,76.923,0.77611274]
[1771924287755,0.82084168,76.96,76.924,0.77611274]
[1771924290162,0.82084168,76.952,76.924,0.77611274]
[1771924290761,0.82084168,76.952,76.92,0.1]
[1771924290963,45.47876141,76.959,76.92,0.1]
[1771924290964,0.82084168,76.942,76.92,0.1]
[1771924291761,6.02310423,76.93,76.911,0.77611274]
[1771924291955,6.02310423,76.92,76.896,13.00457228]
[1771924292180,3.69383402,76.963,76.868,55.73104219]
[1771924292475,5.20226255,76.92,76.901,45.51306224]
[1771924293367,5.2030242,76.92,76.901,45.51306224]
[1771924294053,5.2030242,76.92,76.904,0.77611274]
[1771924296368,5.2030242,76.92,76.905,13.77916845]
[1771924296571,32.49424244,76.937,76.892,39.00253485]
[1771924296572,5.2030242,76.95,76.911,0.77611274]
[1771924296754,18.19686833,76.96,76.921,0.77611274]
[1771924297073,5.2030242,76.96,76.921,0.77611274]
[1771924297271,5.2030242,76.95,76.921,0.77611274]
[1771924297655,12.99393183,76.959,76.921,0.77611274]
[1771924298174,5.2030242,76.95,76.923,0.77611274]
[1771924300871,0.82084168,76.958,76.925,0.77611274]
[1771924301077,5.2030242,76.95,76.925,0.77611274]
[1771924303578,0.82084168,76.958,76.927,0.77611274]
[1771924304776,12.99209574,76.97,76.928,45.49708818]
[1771924305079,0.82084168,76.969,76.933,0.77611274]
[1771924305282,5.2030242,76.97,76.933,0.77611274]
[1771924305574,5.2030242,76.97,76.941,0.77611274]
[1771924306176,0.82084168,76.982,76.951,0.77611274]
[1771924306476,5.2030242,76.98,76.951,0.77611274]
[1771924306877,5.2030242,76.98,76.953,0.77611274]
[1771924307259,0.82084168,76.987,76.953,0.77611274]
[1771924307757,5.2030242,76.98,76.953,0.77611274]
[1771924307957,0.82084168,76.987,76.954,12.9947761]
[1771924307958,12.98939216,76.986,76.954,12.9947761]
[1771924308158,5.2030242,76.99,76.955,0.77611274]
[1771924308358,0.82084168,76.989,76.955,0.77611274]
[1771924310278,5.2030242,76.98,76.957,0.77611274]
[1771924310678,0.82084168,76.983,76.957,0.77611274]
[1771924311381,0.82084168,76.988,76.959,0.77611274]
[1771924311588,0.82084168,76.999,76.961,0.77611274]
[1771924312085,0.82084168,76.998,76.961,0.77611274]
[1771924312888,13.80737738,77.003,76.971,0.77611274]
[1771924313087,0.82084168,77.002,76.971,0.77611274]
[1771924313587,5.2030242,77.0,76.973,0.77611274]
[1771924313789,0.82084168,76.999,76.973,0.77611274]
[1771924314164,0.82084168,76.999,76.972,12.99173725]
[1771924314364,0.82084168,76.999,76.973,0.77611274]
[1771924314977,0.78244979,77.008,76.973,0.77611274]
[1771924315786,0.78244979,77.008,76.975,0.85765217]
[1771924315982,5.2030242,77.0,76.975,0.85765217]
[1771924316173,5.98547399,77.0,76.975,0.85765217]
[1771924316372,0.78244979,77.005,76.975,0.85765217]
[1771924316887,5.2030242,77.0,76.975,0.85765217]
[1771924317081,0.78244979,77.005,76.975,0.85765217]
[1771924317573,0.78244979,77.014,76.981,0.85765217]
[1771924317773,0.78244979,77.012,76.983,0.85765217]
[1771924318084,3.69383402,77.046,76.982,12.99004962]
[1771924318085,0.78244979,77.029,76.991,0.85765217]
[1771924318287,5.2030242,77.02,76.991,0.85765217]
[1771924318597,0.78244979,77.019,76.991,0.85765217]
[1771924319198,0.2,77.04,76.993,0.85765217]
[1771924319374,0.78244979,77.033,77.003,0.85765217]
[1771924319573,0.78244979,77.029,77.003,0.85765217]
[1771924320999,12.98043847,77.039,77.003,0.85765217]
[1771924321000,0.78244979,77.019,77.003,0.85765217]
[1771924322190,0.78244979,77.019,76.999,12.98709793]